[Event "*** Titled Tuesday Blitz"]
[Site "Chess.com"]
[Date "2019.01.01"]
[Round "8"]
[White "dmosesov"]
[Black "esteban062000"]
[Result "1-0"]
[WhiteElo "2359"]
[BlackElo "2191"]
[TimeControl "180+2"]
[EndTime "14:57:23 PST"]
[Termination "dmosesov won by checkmate"]

1. e4 {[%clk 0:02:58.6]} 1... c5 {[%clk 0:02:57.3]} 2. Nf3 {[%clk 0:02:59.1]}
2... g6 {[%clk 0:02:55.2]} 3. d4 {[%clk 0:02:56.6]} 3... cxd4 {[%clk 0:02:54.9]}
4. Qxd4 {[%clk 0:02:58.5]} 4... Nf6 {[%clk 0:02:55.4]} 5. e5 {[%clk 0:02:59.8]}
5... Nc6 {[%clk 0:02:56.5]} 6. Qa4 {[%clk 0:03:01.3]} 6... Nd5 {[%clk
0:02:57.3]} 7. Qe4 {[%clk 0:03:02.9]} 7... Nb6 {[%clk 0:02:56.2]} 8. Nc3 {[%clk
0:03:02.1]} 8... d5 {[%clk 0:02:56.3]} 9. exd6 {[%clk 0:03:02.7]} 9... Bf5
{[%clk 0:02:57.3]} 10. dxe7 {[%clk 0:02:00.1]} 10... Bxe7 {[%clk 0:02:41.5]} 11.
Qf4 {[%clk 0:02:00.8]} 11... O-O {[%clk 0:02:28.9]} 12. Be2 {[%clk 0:02:00.9]}
12... Re8 {[%clk 0:02:28.4]} 13. O-O {[%clk 0:02:01.8]} 13... Bd6 {[%clk
0:02:28.5]} 14. Qh6 {[%clk 0:01:44.7]} 14... Bf8 {[%clk 0:02:28.3]} 15. Qg5
{[%clk 0:01:43.9]} 15... Qxg5 {[%clk 0:02:23.9]} 16. Bxg5 {[%clk 0:01:45.8]}
16... Bxc2 {[%clk 0:02:23.2]} 17. Rac1 {[%clk 0:01:46]} 17... Bf5 {[%clk
0:02:20.8]} 18. Bb5 {[%clk 0:01:45.1]} 18... Bg7 {[%clk 0:02:13.2]} 19. h3
{[%clk 0:01:38.1]} 19... Rac8 {[%clk 0:02:12.5]} 20. Rfd1 {[%clk 0:01:30.1]}
20... a6 {[%clk 0:02:09.6]} 21. Bxc6 {[%clk 0:01:23.7]} 21... Rxc6 {[%clk
0:02:11.5]} 22. Nd4 {[%clk 0:01:24.8]} 22... Rd6 {[%clk 0:01:42.3]} 23. Nxf5
{[%clk 0:01:21.5]} 23... Rxd1+ {[%clk 0:01:44.2]} 24. Rxd1 {[%clk 0:01:23.2]}
24... gxf5 {[%clk 0:01:45.6]} 25. Kf1 {[%clk 0:00:52.6]} 25... Nc4 {[%clk
0:01:45.1]} 26. Rd7 {[%clk 0:00:51.7]} 26... Nxb2 {[%clk 0:01:41.6]} 27. Nd5
{[%clk 0:00:52.7]} 27... Nc4 {[%clk 0:01:30.1]} 28. Rxb7 {[%clk 0:00:46.6]}
28... h6 {[%clk 0:01:14.2]} 29. Be7 {[%clk 0:00:44.2]} 29... Nd2+ {[%clk
0:01:08]} 30. Ke2 {[%clk 0:00:44.3]} 30... Ne4 {[%clk 0:01:02.6]} 31. f3 {[%clk
0:00:37.7]} 31... Nc5 {[%clk 0:00:58.1]} 32. Rc7 {[%clk 0:00:35.1]} 32... Ne6
{[%clk 0:00:57.4]} 33. Ra7 {[%clk 0:00:35]} 33... Nc5 {[%clk 0:00:44.6]} 34. Kd2
{[%clk 0:00:30.7]} 34... Ne6 {[%clk 0:00:41.5]} 35. Rxa6 {[%clk 0:00:31.1]}
35... h5 {[%clk 0:00:35.3]} 36. Rd6 {[%clk 0:00:23.3]} 36... Bh6+ {[%clk
0:00:35.3]} 37. Kd1 {[%clk 0:00:23.4]} 37... Rc8 {[%clk 0:00:29.8]} 38. Nf6+
{[%clk 0:00:19.2]} 38... Kh8 {[%clk 0:00:27.4]} 39. Nxh5 {[%clk 0:00:19.3]}
39... Rc1+ {[%clk 0:00:27.1]} 40. Ke2 {[%clk 0:00:20.7]} 40... Rc2+ {[%clk
0:00:27.2]} 41. Kd3 {[%clk 0:00:18.6]} 41... Rxa2 {[%clk 0:00:21.5]} 42. Rb6
{[%clk 0:00:18.4]} 42... Rd2+ {[%clk 0:00:22.5]} 43. Kc3 {[%clk 0:00:18.7]}
43... Rd7 {[%clk 0:00:21.4]} 44. Bf6+ {[%clk 0:00:14.3]} 44... Kh7 {[%clk
0:00:21.4]} 45. Be5 {[%clk 0:00:15.8]} 45... Kg6 {[%clk 0:00:18.5]} 46. g4
{[%clk 0:00:15.6]} 46... fxg4 {[%clk 0:00:19.4]} 47. hxg4 {[%clk 0:00:17.5]}
47... Bd2+ {[%clk 0:00:21]} 48. Kc2 {[%clk 0:00:18.3]} 48... Be3 {[%clk
0:00:22.2]} 49. Rb8 {[%clk 0:00:19.4]} 49... Nd4+ {[%clk 0:00:23.3]} 50. Kb2
{[%clk 0:00:15]} 50... Nc6 {[%clk 0:00:23]} 51. Rg8+ {[%clk 0:00:16]} 51... Kh6
{[%clk 0:00:23.3]} 52. Bg7+ {[%clk 0:00:16.2]} 52... Kg5 {[%clk 0:00:23.2]} 53.
Bd4+ {[%clk 0:00:17]} 53... Kh6 {[%clk 0:00:22.1]} 54. Bxe3+ {[%clk 0:00:16.9]}
54... Kh7 {[%clk 0:00:21.5]} 55. Nf6# {[%clk 0:00:18.2]} 1-0

[Event "*** Titled Tuesday Blitz"]
[Site "Chess.com"]
[Date "2019.01.01"]
[Round "8"]
[White "TheBigBoss04"]
[Black "gmjlh"]
[Result "1/2-1/2"]
[WhiteElo "2524"]
[BlackElo "2642"]
[TimeControl "180+2"]
[EndTime "14:57:32 PST"]
[Termination "Game drawn by agreement"]

1. c4 {[%clk 0:02:54.8]} 1... b6 {[%clk 0:02:59.8]} 2. Nf3 {[%clk 0:02:51.3]}
2... Bb7 {[%clk 0:03:00.7]} 3. g3 {[%clk 0:02:53]} 3... Bxf3 {[%clk 0:03:01.2]}
4. exf3 {[%clk 0:02:53.2]} 4... c5 {[%clk 0:03:02.8]} 5. d4 {[%clk 0:02:38.9]}
5... g6 {[%clk 0:03:02.8]} 6. Bg2 {[%clk 0:02:37.5]} 6... Nc6 {[%clk 0:03:02.6]}
7. dxc5 {[%clk 0:02:34.3]} 7... bxc5 {[%clk 0:03:03.2]} 8. O-O {[%clk 0:02:36]}
8... Bg7 {[%clk 0:02:59.9]} 9. Nc3 {[%clk 0:02:37.4]} 9... Nd4 {[%clk
0:02:53.6]} 10. f4 {[%clk 0:02:37.2]} 10... Nh6 {[%clk 0:02:43.7]} 11. b3 {[%clk
0:02:19.6]} 11... O-O {[%clk 0:02:38.1]} 12. Bb2 {[%clk 0:02:20.2]} 12... Rb8
{[%clk 0:02:31.7]} 13. Rc1 {[%clk 0:02:17.6]} 13... d6 {[%clk 0:02:30.6]} 14.
Re1 {[%clk 0:02:11.4]} 14... Nhf5 {[%clk 0:02:28.4]} 15. Ba1 {[%clk 0:02:07.1]}
15... e6 {[%clk 0:02:21.6]} 16. Ne4 {[%clk 0:01:59.9]} 16... Qa5 {[%clk
0:02:18.4]} 17. Qd2 {[%clk 0:01:49.4]} 17... Qxd2 {[%clk 0:02:11.4]} 18. Nxd2
{[%clk 0:01:51.3]} 18... a5 {[%clk 0:02:11.5]} 19. Bc3 {[%clk 0:01:47.5]} 19...
a4 {[%clk 0:02:11.9]} 20. bxa4 {[%clk 0:01:48.7]} 20... Rfd8 {[%clk 0:01:25.2]}
21. a5 {[%clk 0:01:29.1]} 21... d5 {[%clk 0:01:25.6]} 22. Kf1 {[%clk 0:01:17.5]}
22... Ra8 {[%clk 0:01:21.5]} 23. Red1 {[%clk 0:01:08.4]} 23... Ra7 {[%clk
0:01:13.7]} 24. Rb1 {[%clk 0:01:03.1]} 24... Nc2 {[%clk 0:00:50.2]} 25. Bxg7
{[%clk 0:00:46.6]} 25... Kxg7 {[%clk 0:00:52.1]} 26. Nb3 {[%clk 0:00:36.6]}
26... Rc8 {[%clk 0:00:34.8]} 27. cxd5 {[%clk 0:00:24.4]} 27... c4 {[%clk
0:00:36]} 28. Nd2 {[%clk 0:00:21.8]} 28... exd5 {[%clk 0:00:18.9]} 29. Bxd5
{[%clk 0:00:20.9]} 29... Nfe3+ {[%clk 0:00:19.2]} 30. fxe3 {[%clk 0:00:22.1]}
30... Nxe3+ {[%clk 0:00:21.1]} 31. Kf2 {[%clk 0:00:22.4]} 31... Nxd5 {[%clk
0:00:22.7]} 32. Rdc1 {[%clk 0:00:16.7]} 32... Rxa5 {[%clk 0:00:08.9]} 33. Rxc4
{[%clk 0:00:15.8]} 33... Rxc4 {[%clk 0:00:10.1]} 34. Nxc4 {[%clk 0:00:17.5]}
34... Rxa2+ {[%clk 0:00:11.7]} 35. Kg1 {[%clk 0:00:16.3]} 35... Kf6 {[%clk
0:00:07.3]} 36. Rb2 {[%clk 0:00:14.3]} 36... Rxb2 {[%clk 0:00:04.1]} 37. Nxb2
{[%clk 0:00:15]} 37... Kf5 {[%clk 0:00:05.6]} 38. Kf2 {[%clk 0:00:15.2]} 38...
Ke4 {[%clk 0:00:06.7]} 39. Nc4 {[%clk 0:00:15.2]} 39... f6 {[%clk 0:00:07.5]}
40. Nd6+ {[%clk 0:00:16]} 40... Kd3 {[%clk 0:00:08.7]} 41. Kf3 {[%clk
0:00:16.8]} 41... Nc3 {[%clk 0:00:06.4]} 42. Ne8 {[%clk 0:00:16.5]} 42... Ne4
{[%clk 0:00:07.6]} 43. Nc7 {[%clk 0:00:16.6]} 43... Nd2+ {[%clk 0:00:08.8]} 44.
Kf2 {[%clk 0:00:16.6]} 44... Ke4 {[%clk 0:00:10.4]} 45. Ne6 {[%clk 0:00:15.3]}
45... Kf5 {[%clk 0:00:09.8]} 46. Nd4+ {[%clk 0:00:15]} 46... Ke4 {[%clk
0:00:10.6]} 47. Ne6 {[%clk 0:00:16.5]} 47... Nb3 {[%clk 0:00:07.9]} 48. Nf8
{[%clk 0:00:16.9]} 48... Kf5 {[%clk 0:00:06]} 49. Nxh7 {[%clk 0:00:16.9]} 49...
Nd4 {[%clk 0:00:04.1]} 50. Nf8 {[%clk 0:00:17.2]} 50... g5 {[%clk 0:00:04.6]}
51. Ke3 {[%clk 0:00:13.5]} 51... Nc6 {[%clk 0:00:03.7]} 52. fxg5 {[%clk
0:00:11.3]} 52... fxg5 {[%clk 0:00:05.6]} 53. h3 {[%clk 0:00:11.8]} 53... g4
{[%clk 0:00:04.5]} 54. h4 {[%clk 0:00:12.7]} 54... Ne5 {[%clk 0:00:05.3]} 55.
Nh7 {[%clk 0:00:13.4]} 55... Nd7 {[%clk 0:00:04]} 56. Ng5 {[%clk 0:00:13.9]}
56... Nf6 {[%clk 0:00:05.3]} 57. Nf7 {[%clk 0:00:13.2]} 57... Kg6 {[%clk
0:00:04.6]} 58. Ne5+ {[%clk 0:00:13.6]} 58... Kf5 {[%clk 0:00:05.6]} 59. Nd3
{[%clk 0:00:13.9]} 59... Ne4 {[%clk 0:00:06.8]} 60. h5 {[%clk 0:00:09.6]}
1/2-1/2

[Event "*** Titled Tuesday Blitz"]
[Site "Chess.com"]
[Date "2019.01.01"]
[Round "8"]
[White "Jospem"]
[Black "mitrabhaa"]
[Result "0-1"]
[WhiteElo "2792"]
[BlackElo "2617"]
[TimeControl "180+2"]
[EndTime "14:57:46 PST"]
[Termination "mitrabhaa won by checkmate"]

1. c4 {[%clk 0:03:01.9]} 1... b6 {[%clk 0:02:59.9]} 2. Nf3 {[%clk 0:03:01.5]}
2... Bb7 {[%clk 0:03:01.5]} 3. Nc3 {[%clk 0:03:02.1]} 3... g6 {[%clk 0:03:02.2]}
4. d4 {[%clk 0:03:02.9]} 4... Bg7 {[%clk 0:03:03.6]} 5. e4 {[%clk 0:03:04.1]}
5... d6 {[%clk 0:03:04.1]} 6. Be3 {[%clk 0:03:03.4]} 6... Nd7 {[%clk 0:03:05.3]}
7. h3 {[%clk 0:03:03.5]} 7... e5 {[%clk 0:03:05.4]} 8. d5 {[%clk 0:03:03.6]}
8... Ne7 {[%clk 0:03:06.1]} 9. g4 {[%clk 0:03:02.5]} 9... O-O {[%clk 0:03:07.1]}
10. Rg1 {[%clk 0:03:02.3]} 10... Kh8 {[%clk 0:03:00.8]} 11. Bd3 {[%clk
0:03:01.6]} 11... f5 {[%clk 0:02:59.7]} 12. gxf5 {[%clk 0:03:01.6]} 12... gxf5
{[%clk 0:03:00.7]} 13. Ng5 {[%clk 0:03:02.4]} 13... f4 {[%clk 0:02:42.1]} 14.
Ne6 {[%clk 0:02:54.9]} 14... fxe3 {[%clk 0:02:29.5]} 15. Rxg7 {[%clk 0:02:52.4]}
15... exf2+ {[%clk 0:02:26.4]} 16. Kf1 {[%clk 0:02:36.2]} 16... Qe8 {[%clk
0:02:25]} 17. Qg4 {[%clk 0:02:29.2]} 17... Ng6 {[%clk 0:02:20.8]} 18. Nxc7
{[%clk 0:02:14.4]} 18... Nf6 {[%clk 0:02:06.2]} 19. Nxe8 {[%clk 0:02:14.8]}
19... Nxg4 {[%clk 0:02:06.9]} 20. hxg4 {[%clk 0:02:16.7]} 20... Bc8 {[%clk
0:02:08.3]} 21. Rxg6 {[%clk 0:01:56.6]} 21... hxg6 {[%clk 0:02:07.1]} 22. Nc7
{[%clk 0:01:55.7]} 22... Bxg4 {[%clk 0:02:07.2]} 23. Kg2 {[%clk 0:01:41.2]}
23... Rac8 {[%clk 0:01:51.1]} 24. N7b5 {[%clk 0:01:41.6]} 24... Rf6 {[%clk
0:01:52.2]} 25. Be2 {[%clk 0:01:37]} 25... Bxe2 {[%clk 0:01:47.8]} 26. Nxe2
{[%clk 0:01:38.9]} 26... Rxc4 {[%clk 0:01:49.4]} 27. Nbc3 {[%clk 0:01:38.5]}
27... b5 {[%clk 0:01:48.7]} 28. a3 {[%clk 0:01:34]} 28... a5 {[%clk 0:01:48.9]}
29. Ng3 {[%clk 0:01:19]} 29... b4 {[%clk 0:01:45.1]} 30. axb4 {[%clk 0:01:20]}
30... axb4 {[%clk 0:01:46.3]} 31. Na4 {[%clk 0:01:01.2]} 31... Rc2 {[%clk
0:01:46.8]} 32. Rf1 {[%clk 0:01:02.7]} 32... Kg7 {[%clk 0:01:46.6]} 33. b3
{[%clk 0:01:03.8]} 33... Kh6 {[%clk 0:01:47.3]} 34. Nb6 {[%clk 0:01:05]} 34...
Kg7 {[%clk 0:01:29.9]} 35. Nc4 {[%clk 0:01:02.6]} 35... Kf8 {[%clk 0:01:22.5]}
36. Nh1 {[%clk 0:01:01.4]} 36... Rc3 {[%clk 0:01:18.1]} 37. Na5 {[%clk
0:00:51.5]} 37... Re3 {[%clk 0:01:09.7]} 38. Rxf2 {[%clk 0:00:44.1]} 38... Rf4
{[%clk 0:01:06.9]} 39. Ng3 {[%clk 0:00:35.4]} 39... Ke7 {[%clk 0:01:01.5]} 40.
Nc6+ {[%clk 0:00:35.6]} 40... Kd7 {[%clk 0:01:01.2]} 41. Nxb4 {[%clk 0:00:25.8]}
41... Rxb3 {[%clk 0:01:00.3]} 42. Nc6 {[%clk 0:00:26.1]} 42... Ke8 {[%clk
0:00:58.6]} 43. Na5 {[%clk 0:00:16.3]} 43... Rc3 {[%clk 0:00:57.7]} 44. Nc6
{[%clk 0:00:17.8]} 44... Re3 {[%clk 0:00:57.7]} 45. Na5 {[%clk 0:00:09]} 45...
Rg4 {[%clk 0:00:58.3]} 46. Rf3 {[%clk 0:00:09.7]} 46... Rexe4 {[%clk 0:00:59.6]}
47. Nb7 {[%clk 0:00:09.8]} 47... Ke7 {[%clk 0:00:59.4]} 48. Na5 {[%clk
0:00:09.2]} 48... Ra4 {[%clk 0:00:55.2]} 49. Nc6+ {[%clk 0:00:10.8]} 49... Ke8
{[%clk 0:00:56.8]} 50. Rb3 {[%clk 0:00:07.1]} 50... Kf7 {[%clk 0:00:55.4]} 51.
Rb7+ {[%clk 0:00:06.3]} 51... Kf6 {[%clk 0:00:56.2]} 52. Rb3 {[%clk 0:00:07.8]}
52... Kg5 {[%clk 0:00:55.5]} 53. Nd8 {[%clk 0:00:08]} 53... Kh4 {[%clk
0:00:55.8]} 54. Nf7 {[%clk 0:00:04.4]} 54... Ra2+ {[%clk 0:00:55.4]} 55. Kf1
{[%clk 0:00:06.1]} 55... Rxg3 {[%clk 0:00:54.9]} 56. Rb4+ {[%clk 0:00:07.7]}
56... Kh3 {[%clk 0:00:53.9]} 57. Nxd6 {[%clk 0:00:08.1]} 57... Rc3 {[%clk
0:00:47.3]} 58. Rb1 {[%clk 0:00:08.3]} 58... Kh2 {[%clk 0:00:47.9]} 59. Ne4
{[%clk 0:00:07.6]} 59... Rf3+ {[%clk 0:00:48.2]} 60. Ke1 {[%clk 0:00:06.6]}
60... Re3+ {[%clk 0:00:49.5]} 61. Kf1 {[%clk 0:00:08.5]} 61... Rxe4 {[%clk
0:00:50]} 62. d6 {[%clk 0:00:10.4]} 62... Rg4 {[%clk 0:00:51.2]} 63. d7 {[%clk
0:00:12.3]} 63... Rg1# {[%clk 0:00:52.1]} 0-1

[Event "*** Titled Tuesday Blitz"]
[Site "Chess.com"]
[Date "2019.01.01"]
[Round "8"]
[White "Hikaru"]
[Black "Paralinch"]
[Result "1/2-1/2"]
[WhiteElo "3042"]
[BlackElo "2927"]
[TimeControl "180+2"]
[EndTime "14:57:56 PST"]
[Termination "Game drawn by repetition"]

1. Nf3 {[%clk 0:03:01.9]} 1... d5 {[%clk 0:03:00.6]} 2. b3 {[%clk 0:03:02.4]}
2... Bf5 {[%clk 0:03:00]} 3. Bb2 {[%clk 0:03:02.8]} 3... e6 {[%clk 0:03:01.5]}
4. g3 {[%clk 0:03:02.2]} 4... h6 {[%clk 0:03:01.6]} 5. Bg2 {[%clk 0:03:02.5]}
5... Nf6 {[%clk 0:03:03.2]} 6. O-O {[%clk 0:03:02.9]} 6... Be7 {[%clk
0:03:04.6]} 7. d3 {[%clk 0:03:04.1]} 7... O-O {[%clk 0:03:05.5]} 8. Ne5 {[%clk
0:03:05.8]} 8... Nbd7 {[%clk 0:03:03.6]} 9. Nd2 {[%clk 0:03:05.9]} 9... Nxe5
{[%clk 0:03:02.7]} 10. Bxe5 {[%clk 0:03:07.8]} 10... Bh7 {[%clk 0:03:01.6]} 11.
Bb2 {[%clk 0:03:06.5]} 11... a5 {[%clk 0:03:02.4]} 12. a3 {[%clk 0:03:07.4]}
12... c5 {[%clk 0:02:59.9]} 13. c4 {[%clk 0:03:07.7]} 13... a4 {[%clk
0:02:50.5]} 14. bxa4 {[%clk 0:03:07.8]} 14... Qa5 {[%clk 0:02:50.1]} 15. Rb1
{[%clk 0:03:06.9]} 15... Rfd8 {[%clk 0:02:41.1]} 16. Bxf6 {[%clk 0:02:25.4]}
16... Bxf6 {[%clk 0:02:39.3]} 17. cxd5 {[%clk 0:02:25.6]} 17... exd5 {[%clk
0:02:39.1]} 18. Rb5 {[%clk 0:02:24]} 18... Qc7 {[%clk 0:02:24.7]} 19. Qb3 {[%clk
0:02:24.2]} 19... Qe5 {[%clk 0:02:16.7]} 20. Bf3 {[%clk 0:02:10.5]} 20... Bg5
{[%clk 0:01:56.2]} 21. Rd1 {[%clk 0:01:50]} 21... Rac8 {[%clk 0:01:28.9]} 22. h4
{[%clk 0:01:26.2]} 22... Bxd2 {[%clk 0:01:17]} 23. Rxd2 {[%clk 0:01:28.1]} 23...
Bf5 {[%clk 0:01:18.6]} 24. d4 {[%clk 0:01:12.1]} 24... cxd4 {[%clk 0:01:17]} 25.
Rxd5 {[%clk 0:01:14]} 25... Rxd5 {[%clk 0:01:09.1]} 26. Qxd5 {[%clk 0:01:15.9]}
26... Qxd5 {[%clk 0:00:37.8]} 27. Bxd5 {[%clk 0:01:17.8]} 27... d3 {[%clk
0:00:39.4]} 28. e4 {[%clk 0:01:12.2]} 28... Bd7 {[%clk 0:00:39.1]} 29. Rxd3
{[%clk 0:01:12.2]} 29... Bxa4 {[%clk 0:00:39.3]} 30. Bxb7 {[%clk 0:01:13.3]}
30... Rc1+ {[%clk 0:00:40]} 31. Kg2 {[%clk 0:01:14.3]} 31... Bb5 {[%clk
0:00:40]} 32. Re3 {[%clk 0:01:07.7]} 32... g5 {[%clk 0:00:39.9]} 33. hxg5 {[%clk
0:01:08.5]} 33... hxg5 {[%clk 0:00:41.8]} 34. e5 {[%clk 0:00:55.4]} 34... Kg7
{[%clk 0:00:42.1]} 35. g4 {[%clk 0:00:51.7]} 35... Ba4 {[%clk 0:00:39]} 36. e6
{[%clk 0:00:41.5]} 36... fxe6 {[%clk 0:00:38.2]} 37. Rxe6 {[%clk 0:00:43.4]}
37... Rc3 {[%clk 0:00:33.6]} 38. Re3 {[%clk 0:00:44.1]} 38... Rc7 {[%clk
0:00:33]} 39. Bf3 {[%clk 0:00:44.5]} 39... Kf6 {[%clk 0:00:32.7]} 40. Rd3 {[%clk
0:00:40.9]} 40... Bd7 {[%clk 0:00:32.9]} 41. Rd6+ {[%clk 0:00:39.8]} 41... Kg7
{[%clk 0:00:32.7]} 42. Rd5 {[%clk 0:00:38.8]} 42... Kf6 {[%clk 0:00:33.2]} 43.
Ra5 {[%clk 0:00:32.5]} 43... Be6 {[%clk 0:00:32.8]} 44. Ra6 {[%clk 0:00:25]}
44... Ke5 {[%clk 0:00:33.4]} 45. Ra5+ {[%clk 0:00:26.6]} 45... Kf4 {[%clk
0:00:31.7]} 46. Ra4+ {[%clk 0:00:22.2]} 46... Ke5 {[%clk 0:00:32.7]} 47. Re4+
{[%clk 0:00:23.6]} 47... Kf6 {[%clk 0:00:33.8]} 48. a4 {[%clk 0:00:25.1]} 48...
Rc3 {[%clk 0:00:35.1]} 49. Rd4 {[%clk 0:00:25.5]} 49... Ra3 {[%clk 0:00:35.3]}
50. Bc6 {[%clk 0:00:26.6]} 50... Ke5 {[%clk 0:00:34.8]} 51. Rb4 {[%clk
0:00:26.3]} 51... Ra1 {[%clk 0:00:31.2]} 52. Rb5+ {[%clk 0:00:23.4]} 52... Kf6
{[%clk 0:00:32.3]} 53. Rb4 {[%clk 0:00:21.2]} 53... Ke5 {[%clk 0:00:33.4]} 54.
f3 {[%clk 0:00:20.1]} 54... Ra2+ {[%clk 0:00:33.2]} 55. Kg3 {[%clk 0:00:21.3]}
55... Ra1 {[%clk 0:00:35.1]} 56. Be4 {[%clk 0:00:22.7]} 56... Rg1+ {[%clk
0:00:35.3]} 57. Kf2 {[%clk 0:00:23.8]} 57... Ra1 {[%clk 0:00:37.2]} 58. Ke3
{[%clk 0:00:24.3]} 58... Ra3+ {[%clk 0:00:38.5]} 59. Bd3 {[%clk 0:00:24.9]}
59... Bd5 {[%clk 0:00:38.9]} 60. Rb5 {[%clk 0:00:23.9]} 60... Kd6 {[%clk
0:00:26.9]} 61. Rb4 {[%clk 0:00:25.2]} 61... Ke5 {[%clk 0:00:27.8]} 62. Rb5
{[%clk 0:00:21.6]} 62... Kd6 {[%clk 0:00:28.8]} 63. a5 {[%clk 0:00:05.7]} 63...
Bc4 {[%clk 0:00:26.8]} 64. Rxg5 {[%clk 0:00:06.9]} 64... Bxd3 {[%clk 0:00:23.7]}
65. Kf2 {[%clk 0:00:08]} 65... Bc4 {[%clk 0:00:23.8]} 66. Rf5 {[%clk 0:00:08.8]}
66... Be6 {[%clk 0:00:23.9]} 67. Rh5 {[%clk 0:00:09.4]} 67... Bd5 {[%clk
0:00:24.4]} 68. Rf5 {[%clk 0:00:11]} 68... Rxa5 {[%clk 0:00:25]} 69. Kg3 {[%clk
0:00:12.7]} 69... Ra3 {[%clk 0:00:26.1]} 70. Rf4 {[%clk 0:00:14.3]} 70... Ke5
{[%clk 0:00:27.2]} 71. Rf5+ {[%clk 0:00:15.7]} 71... Ke6 {[%clk 0:00:28.6]} 72.
Rf4 {[%clk 0:00:17]} 72... Ke5 {[%clk 0:00:30.1]} 73. Rf5+ {[%clk 0:00:18.4]}
73... Ke6 {[%clk 0:00:31.5]} 74. Rf4 {[%clk 0:00:19.2]} 74... Ke5 {[%clk
0:00:33]} 1/2-1/2

[Event "*** Titled Tuesday Blitz"]
[Site "Chess.com"]
[Date "2019.01.01"]
[Round "8"]
[White "Fluffey"]
[Black "PrinceCharming92"]
[Result "1/2-1/2"]
[WhiteElo "2456"]
[BlackElo "2460"]
[TimeControl "180+2"]
[EndTime "14:58:12 PST"]
[Termination "Game drawn by agreement"]

1. Nf3 {[%clk 0:03:01.9]} 1... d5 {[%clk 0:03:00.6]} 2. g3 {[%clk 0:03:02]} 2...
Nf6 {[%clk 0:03:01.5]} 3. Bg2 {[%clk 0:03:03.2]} 3... c6 {[%clk 0:03:03]} 4. O-O
{[%clk 0:03:04.3]} 4... Bf5 {[%clk 0:03:04.5]} 5. d3 {[%clk 0:03:05.4]} 5... e6
{[%clk 0:03:04.9]} 6. Nh4 {[%clk 0:03:06.1]} 6... Bg6 {[%clk 0:03:05.4]} 7. Nxg6
{[%clk 0:02:57.2]} 7... hxg6 {[%clk 0:03:07.3]} 8. Nd2 {[%clk 0:02:57.5]} 8...
Bc5 {[%clk 0:03:04]} 9. e4 {[%clk 0:02:57.9]} 9... O-O {[%clk 0:03:02.9]} 10. e5
{[%clk 0:02:53]} 10... Nfd7 {[%clk 0:03:03.3]} 11. Nf3 {[%clk 0:02:50.8]} 11...
Be7 {[%clk 0:02:57.9]} 12. h4 {[%clk 0:02:50.1]} 12... c5 {[%clk 0:02:57]} 13.
Re1 {[%clk 0:02:48.4]} 13... Nc6 {[%clk 0:02:57.8]} 14. Bf4 {[%clk 0:02:42.3]}
14... b5 {[%clk 0:02:54.9]} 15. Qd2 {[%clk 0:02:19.1]} 15... Nb6 {[%clk
0:02:51.8]} 16. g4 {[%clk 0:02:19]} 16... c4 {[%clk 0:02:42.7]} 17. d4 {[%clk
0:02:16.1]} 17... b4 {[%clk 0:02:40.3]} 18. c3 {[%clk 0:02:16.3]} 18... bxc3
{[%clk 0:02:40.8]} 19. bxc3 {[%clk 0:02:17.3]} 19... Na4 {[%clk 0:02:38.1]} 20.
h5 {[%clk 0:02:14]} 20... gxh5 {[%clk 0:02:38.3]} 21. gxh5 {[%clk 0:02:14.9]}
21... Rb8 {[%clk 0:02:38.1]} 22. Rab1 {[%clk 0:02:11.6]} 22... Qa5 {[%clk
0:02:37.3]} 23. Rxb8 {[%clk 0:02:02.8]} 23... Rxb8 {[%clk 0:02:36.4]} 24. Rc1
{[%clk 0:02:03.5]} 24... Rb2 {[%clk 0:02:28]} 25. Qe3 {[%clk 0:02:04.5]} 25...
Rxa2 {[%clk 0:02:21.8]} 26. Bg5 {[%clk 0:02:03.7]} 26... Ba3 {[%clk 0:02:09.6]}
27. h6 {[%clk 0:01:45.7]} 27... Bxc1 {[%clk 0:02:06.1]} 28. Qxc1 {[%clk
0:01:47.6]} 28... Qxc3 {[%clk 0:02:02.4]} 29. Qf4 {[%clk 0:01:48.6]} 29... Qc2
{[%clk 0:01:39.7]} 30. Qg3 {[%clk 0:01:40.1]} 30... Nc3 {[%clk 0:01:32.1]} 31.
Qh4 {[%clk 0:01:27.4]} 31... Ne4 {[%clk 0:01:03.9]} 32. Be3 {[%clk 0:01:25.4]}
32... Nc3 {[%clk 0:00:31.7]} 33. Ng5 {[%clk 0:01:14.8]} 33... Ne2+ {[%clk
0:00:20.7]} 34. Kh2 {[%clk 0:01:11.6]} 34... Qg6 {[%clk 0:00:21.6]} 35. h7+
{[%clk 0:01:03.4]} 35... Kh8 {[%clk 0:00:22.8]} 36. Bf3 {[%clk 0:00:54.9]} 36...
Nexd4 {[%clk 0:00:17.7]} 37. Bh5 {[%clk 0:00:54.2]} 37... Rxf2+ {[%clk 0:00:11]}
38. Bxf2 {[%clk 0:00:50.5]} 38... Qf5 {[%clk 0:00:08.3]} 39. Nxf7+ {[%clk
0:00:28.6]} 39... Qxf7 {[%clk 0:00:08.6]} 40. Bxf7 {[%clk 0:00:26.1]} 40... Nf3+
{[%clk 0:00:09.4]} 41. Kg2 {[%clk 0:00:21.6]} 41... Nxh4+ {[%clk 0:00:11.3]} 42.
Bxh4 {[%clk 0:00:22.8]} 42... Nxe5 {[%clk 0:00:12.7]} 43. Bxe6 {[%clk
0:00:21.6]} 43... c3 {[%clk 0:00:14.2]} 44. Bxd5 {[%clk 0:00:18.2]} 44... c2
{[%clk 0:00:15.4]} 45. Bg5 {[%clk 0:00:18.4]} 45... Nd3 {[%clk 0:00:16.5]} 46.
Be4 {[%clk 0:00:16.2]} 46... c1=Q {[%clk 0:00:17.4]} 47. Bxc1 {[%clk 0:00:17.3]}
47... Nxc1 {[%clk 0:00:19.3]} 48. Kf3 {[%clk 0:00:17.2]} 48... Nb3 {[%clk
0:00:20.5]} 49. Ke3 {[%clk 0:00:18]} 49... Nc5 {[%clk 0:00:22.2]} 50. Bc2 {[%clk
0:00:19.1]} 50... Ne6 {[%clk 0:00:23]} 51. Ke4 {[%clk 0:00:17.9]} 51... Ng5+
{[%clk 0:00:24]} 52. Kd5 {[%clk 0:00:16.5]} 52... Nxh7 {[%clk 0:00:25.9]} 53.
Kc6 {[%clk 0:00:18.1]} 53... Nf6 {[%clk 0:00:26.3]} 54. Kb7 {[%clk 0:00:18]}
54... g5 {[%clk 0:00:26.7]} 55. Kxa7 {[%clk 0:00:19]} 55... g4 {[%clk
0:00:27.8]} 56. Bd1 {[%clk 0:00:17.8]} 56... g3 {[%clk 0:00:28.5]} 57. Bf3
{[%clk 0:00:19.5]} 57... Kg7 {[%clk 0:00:29.1]} 58. Kb6 {[%clk 0:00:21]} 58...
Kg6 {[%clk 0:00:30.6]} 59. Kc5 {[%clk 0:00:22.7]} 59... Kf5 {[%clk 0:00:32.2]}
60. Kd4 {[%clk 0:00:24.1]} 60... Kf4 {[%clk 0:00:33.7]} 61. Bg2 {[%clk
0:00:25.1]} 61... Ng4 {[%clk 0:00:34.3]} 62. Kd3 {[%clk 0:00:22]} 62... Ne3
{[%clk 0:00:34.4]} 63. Ba8 {[%clk 0:00:21.4]} 63... Ng4 {[%clk 0:00:20.6]} 64.
Ke2 {[%clk 0:00:21.6]} 64... Ne5 {[%clk 0:00:21.6]} 65. Bb7 {[%clk 0:00:21.6]}
65... Nc4 {[%clk 0:00:20]} 66. Ba8 {[%clk 0:00:21.5]} 66... Nd6 {[%clk
0:00:21.4]} 67. Bc6 {[%clk 0:00:22.3]} 67... Nf5 {[%clk 0:00:22.7]} 68. Ba8
{[%clk 0:00:22.9]} 68... Nd4+ {[%clk 0:00:22.6]} 69. Kf1 {[%clk 0:00:22.4]}
69... Nf5 {[%clk 0:00:21.6]} 70. Kg2 {[%clk 0:00:23.4]} 70... Nh4+ {[%clk
0:00:21.7]} 71. Kh3 {[%clk 0:00:22.3]} 71... Nf5 {[%clk 0:00:23.2]} 72. Kg2
{[%clk 0:00:23.5]} 72... Ne3+ {[%clk 0:00:24.7]} 73. Kh3 {[%clk 0:00:23]} 73...
Ng4 {[%clk 0:00:25.7]} 74. Kg2 {[%clk 0:00:24]} 74... Nf2 {[%clk 0:00:27]} 75.
Bb7 {[%clk 0:00:24.1]} 75... Nd3 {[%clk 0:00:28]} 76. Ba8 {[%clk 0:00:24.8]}
1/2-1/2